[Event "45th FIDE Womens Olympiad 2024"]
[Site "Budapest"]
[Date "2024.09.16"]
[Round "6.181"]
[White "Ortez, Andrea"]
[Black "Strade, Arita"]
[Result "1/2-1/2"]
[ECO "C41"]
[WhiteElo "1948"]
[BlackElo "1946"]
[PlyCount "160"]
[EventDate "2024.09.05"]
[EventType "team-tourn"]
[EventCountry "HUN"]
[WhiteTeam "El Salvador"]
[BlackTeam "Guernsey"]
[WhiteTeamCountry "ESA"]
[TimeControl "40/5400+30:1800+30"]

1. e4 d6 2. d4 e5 3. Nf3 exd4 4. Nxd4 Nf6 5. Nc3 Be7 6. Be2 O-O 7. O-O Nc6 8. Nxc6 bxc6 9. f4 d5 10. e5 Bc5+ 11. Kh1 Nd7 12. Bf3 a5 13. Re1 Re8 14. Bg4 Nf8 15. f5 h5 16. Bh3 Qh4 17. Be3 Bxe3 18. Rxe3 Qf4 19. Qe1 Qh6 20. Rd1 Rb8 21. Na4 Rb4 22. b3 Rf4 23. g3 Rb4 24. a3 Rb5 25. c4 Rb8 26. Nc5 Qg5 27. Qf2 dxc4 28. bxc4 Rb2 29. Qf3 Rc2 30. Ne4 Qh6 31. e6 Rxc4 32. Nd2 Rd4 33. exf7+ Kxf7 34. Rxe8 Kxe8 35. Re1+ Kf7 36. Qb3+ Rd5 37. Ne4 Kg8 38. Nc3 Qd2 39. Rd1 Qe3 40. Bg2 Bxf5 41. Qc4 Kh7 42. Nxd5 cxd5 43. Qxd5 Bg6 44. Qxa5 c5 45. Re1 Qd4 46. Qa8 Qd2 47. Rf1 Ne6 48. Be4 Qe2 49. Bxg6+ Kxg6 50. Qf3 Qe5 51. g4 hxg4 52. Rg1 Kh7 53. Rxg4 Qe1+ 54. Kg2 Qd2+ 55. Kg3 Qd6+ 56. Kh3 Kg8 57. a4 c4 58. Qa8+ Kf7 59. Qb7+ Kf6 60. Qf3+ Ke7 61. Qe3 Kf6 62. Qc3+ Kf7 63. Qxc4 Qe5 64. Qf1+ Ke7 65. Kg2 g5 66. Qf3 Qb2+ 67. Qf2 Qe5 68. Qa7+ Kf6 69. Qf2+ Ke7 70. h4 Qd5+ 71. Qf3 Qd2+ 72. Qf2 Qd5+ 73. Kh2 Qe5+ 74. Qg3 Qe2+ 75. Kh3 Qf1+ 76. Qg2 Qd3+ 77. Kh2 Qd6+ 78. Kg1 Qd1+ 79. Kh2 Qd6+ 80. Kh3 Qd3+ 1/2-1/2

[Event "45th FIDE Womens Olympiad 2024"]
[Site "Budapest"]
[Date "2024.09.16"]
[Round "6.182"]
[White "Nevska, Gerda"]
[Black "Vasquez Vasquez, Marielos"]
[Result "0-1"]
[ECO "A36"]
[WhiteElo "1892"]
[BlackElo "1844"]
[PlyCount "126"]
[EventDate "2024.09.05"]
[EventType "team-tourn"]
[EventCountry "HUN"]
[WhiteTeam "Guernsey"]
[BlackTeam "El Salvador"]
[BlackTeamCountry "ESA"]
[TimeControl "40/5400+30:1800+30"]

1. c4 Nf6 2. Nc3 g6 3. e4 d6 4. g3 Bg7 5. Bg2 O-O 6. Nge2 c5 7. O-O Nc6 8. h3 Ne8 9. Rb1 Rb8 10. a3 a5 11. d3 Nc7 12. b3 Nd4 13. b4 axb4 14. axb4 cxb4 15. Rxb4 Nxe2+ 16. Nxe2 b5 17. Be3 Bd7 18. Qc1 Na6 19. Rb3 Nc5 20. Bxc5 dxc5 21. cxb5 Rxb5 22. Rxb5 Bxb5 23. Qxc5 Qxd3 24. Nf4 Qd7 25. Rb1 Ba4 26. Nd5 e6 27. Nb6 Qd3 28. Rb4 Bd1 29. e5 Rd8 30. Nc4 Bf8 31. Nd6 Bxd6 32. exd6 Qxd6 33. Qa5 Qd2 34. Qc7 Qd6 35. Qa5 Be2 36. Re4 Bd3 37. Rb4 Bf5 38. Rb7 Rc8 39. Qa7 Qd1+ 40. Kh2 Rf8 41. Qe3 Qa1 42. Re7 Qf6 43. Rb7 h5 44. Rb4 Rd8 45. Bf3 Kg7 46. Kg2 Rd3 47. Qc5 Bxh3+ 48. Kxh3 Rxf3 49. Kg2 Rf5 50. Qa7 Qc3 51. Qb7 Qd2 52. Qb6 Qd5+ 53. Kg1 Qd1+ 54. Kg2 Qf3+ 55. Kg1 Rd5 56. Rb1 h4 57. gxh4 Qg4+ 58. Kf1 Qh3+ 59. Kg1 Qxh4 60. Rb3 Rd1+ 61. Kg2 Qh1+ 62. Kg3 g5 63. Qb4 Rg1# {0-} 0-1

[Event "45th FIDE Womens Olympiad 2024"]
[Site "Budapest"]
[Date "2024.09.16"]
[Round "6.183"]
[White "Zavala Galindo, Alejandra Beatriz"]
[Black "Denning, Julie L"]
[Result "1-0"]
[ECO "A05"]
[WhiteElo "1870"]
[BlackElo "1741"]
[PlyCount "103"]
[EventDate "2024.09.05"]
[EventType "team-tourn"]
[EventCountry "HUN"]
[WhiteTeam "El Salvador"]
[BlackTeam "Guernsey"]
[WhiteTeamCountry "ESA"]
[TimeControl "40/5400+30:1800+30"]

1. Nf3 Nf6 2. g3 b5 3. Bg2 Bb7 4. O-O g6 5. d3 Bg7 6. e4 d6 7. c3 O-O 8. Qb3 a5 9. a4 c6 10. Na3 Nbd7 11. axb5 Nc5 12. Qc2 cxb5 13. Nxb5 a4 14. Be3 Nb3 15. Rad1 e5 16. Nd2 Bc6 17. Na3 Qb8 18. h3 Qb7 19. Nac4 Rfd8 20. Bb6 Nxd2 21. Qxd2 Rd7 22. Ba5 Qb5 23. Bb4 Qb8 24. Qe3 Raa7 25. Ra1 Ne8 26. Rfd1 d5 27. Nb6 Rd8 28. exd5 Ba8 29. Rxa4 Rxa4 30. Nxa4 Bxd5 31. Bxd5 Rxd5 32. Qb6 Qc8 33. Kg2 Qa8 34. Kh2 Qxa4 35. Qb8 Qd7 36. c4 Bf6 37. cxd5 Kg7 38. Rc1 Kh6 39. Bd2+ g5 40. Rc8 Ng7 41. Rc6 Kg6 42. Qb6 Ne8 43. Qc5 Kg7 44. Bc3 Qf5 45. Qe3 h5 46. b4 Qd7 47. Bxe5 Qxd5 48. Qxg5+ Kf8 49. Rxf6 Nxf6 50. Bxf6 Qd6 51. Qg7+ Ke8 52. Qg8+ 1-0

[Event "45th FIDE Womens Olympiad 2024"]
[Site "Budapest"]
[Date "2024.09.16"]
[Round "6.185"]
[White "Mayorga Araya, Sofia"]
[Black "Laamim, Roaa"]
[Result "1-0"]
[ECO "C77"]
[WhiteElo "2059"]
[BlackElo "1879"]
[PlyCount "75"]
[EventDate "2024.09.05"]
[EventType "team-tourn"]
[EventCountry "HUN"]
[WhiteTeam "Costa Rica"]
[BlackTeam "Morocco"]
[WhiteTeamCountry "CRI"]
[BlackTeamCountry "MAR"]
[TimeControl "40/5400+30:1800+30"]

1. e4 e5 2. Nf3 Nc6 3. Bb5 a6 4. Ba4 Nf6 5. Qe2 b5 6. Bb3 Bc5 7. c3 O-O 8. O-O d5 9. d3 d4 10. h3 h6 11. Nbd2 a5 12. a4 dxc3 13. bxc3 b4 14. Bb2 bxc3 15. Bxc3 Nd4 16. Qd1 Re8 17. Ba2 Bb4 18. Bxb4 axb4 19. Nxd4 Qxd4 20. Qc2 Ba6 21. Rfd1 Qd7 22. Nf3 Rac8 23. d4 exd4 24. Rxd4 Qe7 25. e5 Nd7 26. Qc6 Nb6 27. a5 Be2 28. axb6 Bxf3 29. Qxf3 cxb6 30. Rad1 Rc3 31. R4d3 Rxd3 32. Rxd3 Qa7 33. Bb3 Kh8 34. Bxf7 Rc8 35. Rd1 Qe7 36. e6 Rd8 37. Rxd8+ Qxd8 38. e7 1-0

[Event "45th FIDE Womens Olympiad 2024"]
[Site "Budapest"]
[Date "2024.09.16"]
[Round "6.186"]
[White "Chemaou, Lilya"]
[Black "Rodriguez Arrieta, Maria Elena"]
[Result "0-1"]
[ECO "C49"]
[WhiteElo "1565"]
[BlackElo "1941"]
[PlyCount "64"]
[EventDate "2024.09.05"]
[EventType "team-tourn"]
[EventCountry "HUN"]
[WhiteTeam "Morocco"]
[BlackTeam "Costa Rica"]
[WhiteTeamCountry "MAR"]
[BlackTeamCountry "CRI"]
[TimeControl "40/5400+30:1800+30"]

1. e4 e5 2. Nc3 Nc6 3. Nf3 Nf6 4. Bb5 Bb4 5. d3 d6 6. h3 O-O 7. O-O Ne7 8. a3 Bxc3 9. bxc3 c6 10. Ba4 Qa5 11. Bb3 Qxc3 12. Bd2 Qc5 13. Bb4 Qb6 14. Bxd6 Qd8 15. Bxe5 Ng6 16. Bc3 Nh5 17. Qd2 Nhf4 18. Ne5 Qg5 19. Ng4 h5 20. f3 hxg4 21. fxg4 Be6 22. Bxe6 Nxe6 23. Qf2 c5 24. Qf5 Qe7 25. g3 Nd4 26. Qf2 Rad8 27. Bxd4 Rxd4 28. Qf5 c4 29. Qf2 Qd6 30. dxc4 Rd2 31. Qe3 Rd8 32. Qxa7 Qxg3+ {0-} 0-1

[Event "45th FIDE Womens Olympiad 2024"]
[Site "Budapest"]
[Date "2024.09.16"]
[Round "6.187"]
[White "Acevedo Mendez, Jennifer"]
[Black "El Harrak, Maryam"]
[Result "1-0"]
[ECO "B12"]
[WhiteElo "1836"]
[BlackElo "1639"]
[PlyCount "51"]
[EventDate "2024.09.05"]
[EventType "team-tourn"]
[EventCountry "HUN"]
[WhiteTeam "Costa Rica"]
[BlackTeam "Morocco"]
[WhiteTeamCountry "CRI"]
[BlackTeamCountry "MAR"]
[TimeControl "40/5400+30:1800+30"]

1. e4 c6 2. d4 d5 3. e5 Bf5 4. Nf3 e6 5. Be2 Nd7 6. O-O c5 7. c3 a6 8. Be3 Qc7 9. Nh4 Bg6 10. Nxg6 hxg6 11. Nd2 Be7 12. Nf3 Nh6 13. Rc1 c4 14. b3 b5 15. Qd2 O-O 16. Bxh6 gxh6 17. Qxh6 Rfe8 18. Ng5 Bxg5 19. Qxg5 Kg7 20. f4 Qd8 21. Qg3 Kh7 22. Rf3 Rh8 23. Rcf1 Qe7 24. f5 g5 25. f6 Qf8 26. Qxg5 1-0

[Event "45th FIDE Womens Olympiad 2024"]
[Site "Budapest"]
[Date "2024.09.16"]
[Round "6.188"]
[White "El Barbry, Sarah"]
[Black "Bogantes Robleto, Karina"]
[Result "1-0"]
[ECO "B31"]
[WhiteElo "1862"]
[BlackElo "1766"]
[PlyCount "115"]
[EventDate "2024.09.05"]
[EventType "team-tourn"]
[EventCountry "HUN"]
[WhiteTeam "Morocco"]
[BlackTeam "Costa Rica"]
[WhiteTeamCountry "MAR"]
[BlackTeamCountry "CRI"]
[TimeControl "40/5400+30:1800+30"]

1. e4 c5 2. Nf3 Nc6 3. Bb5 g6 4. Bxc6 dxc6 5. d3 Bg7 6. h3 Nf6 7. Nc3 Nd7 8. Be3 e5 9. Qd2 h6 10. O-O b6 11. Nh2 Nf8 12. f4 exf4 13. Rxf4 Ne6 14. Rf2 Nd4 15. Raf1 Be6 16. Kh1 Qd7 17. b3 O-O-O 18. a4 a5 19. Ne2 Nxe2 20. Qxe2 f5 21. Nf3 fxe4 22. dxe4 g5 23. Nh2 Rhf8 24. Rxf8 Bxf8 25. Rf6 Kb7 26. Rf1 Bg7 27. Ng4 Bxg4 28. Qxg4 Qxg4 29. hxg4 Rd7 30. Re1 Be5 31. Kg1 Bg3 32. Bf2 Bxf2+ 33. Kxf2 Rd2+ 34. Ke3 Rd6 35. e5 Rd4 36. Kf3 Kc7 37. Rh1 Rf4+ 38. Kg3 Re4 39. Rxh6 Rxe5 40. Kf3 Kb7 41. Rh7+ Kc8 42. Rf7 Rd5 43. Rg7 Kb8 44. g3 Kc8 45. Ke4 Rd2 46. Rxg5 Rxc2 47. Rf5 Re2+ 48. Kf4 Rb2 49. g5 Rxb3 50. g6 Rb1 51. g7 Rf1+ 52. Kg5 Rxf5+ 53. Kxf5 b5 54. g8=Q+ Kb7 55. g4 c4 56. g5 c3 57. Qg7+ Kb6 58. Qxc3 1-0

[Event "45th FIDE Womens Olympiad 2024"]
[Site "Budapest"]
[Date "2024.09.16"]
[Round "6.189"]
[White "Kanyamarala, Trisha"]
[Black "Feng, Eunice"]
[Result "1/2-1/2"]
[ECO "D47"]
[WhiteElo "2179"]
[BlackElo "1974"]
[PlyCount "72"]
[EventDate "2024.09.05"]
[EventType "team-tourn"]
[EventCountry "HUN"]
[WhiteTeam "Ireland"]
[BlackTeam "Hong Kong, China"]
[WhiteTeamCountry "IRL"]
[TimeControl "40/5400+30:1800+30"]

1. d4 d5 2. c4 c6 3. Nc3 Nf6 4. e3 e6 5. Nf3 Nbd7 6. Bd3 dxc4 7. Bxc4 b5 8. Bb3 Bb7 9. O-O a6 10. e4 b4 11. Na4 Nxe4 12. Re1 Ndf6 13. Qc2 c5 14. Nxc5 Bxc5 15. Ba4+ Ke7 16. dxc5 Bd5 17. Bf4 Rc8 18. c6 Qa5 19. Nd2 Nc5 20. Nb3 Bxb3 21. axb3 Nd5 22. Be5 f6 23. Bd4 Nxa4 24. bxa4 Kf7 25. Rac1 Rhd8 26. Qxh7 Qxa4 27. Qh5+ Kg8 28. c7 Rxc7 29. Rxc7 Nxc7 30. Bxf6 gxf6 31. Qg6+ Kf8 32. Qxf6+ Ke8 33. Rxe6+ Nxe6 34. Qxe6+ Kf8 35. Qf6+ Ke8 36. Qe6+ Kf8 1/2-1/2

[Event "45th FIDE Womens Olympiad 2024"]
[Site "Budapest"]
[Date "2024.09.16"]
[Round "6.190"]
[White "Lou, Yuxin"]
[Black "O'Gorman, Alice"]
[Result "0-1"]
[ECO "D31"]
[WhiteElo "1654"]
[BlackElo "1996"]
[PlyCount "64"]
[EventDate "2024.09.05"]
[EventType "team-tourn"]
[EventCountry "HUN"]
[WhiteTeam "Hong Kong, China"]
[BlackTeam "Ireland"]
[BlackTeamCountry "IRL"]
[TimeControl "40/5400+30:1800+30"]

1. d4 d5 2. c4 e6 3. Nc3 a6 4. Nf3 dxc4 5. a4 Nc6 6. e4 Na5 7. Bf4 Bb4 8. d5 exd5 9. Qxd5 Qxd5 10. exd5 Nf6 11. Rd1 O-O 12. Be2 Re8 13. Bxc7 Bf5 14. Kf1 Rac8 15. Bb6 Nb3 16. Nd4 Nxd4 17. Bxd4 Bd7 18. Bxf6 gxf6 19. Rd4 Bxc3 20. bxc3 Bxa4 21. Bxc4 b5 22. Bd3 Rxc3 23. g3 Rd8 24. Kg2 Bb3 25. Be4 a5 26. Rb1 a4 27. Rb4 Rc4 28. Rxc4 Bxc4 29. f3 a3 30. Ra1 a2 31. Kf2 b4 32. Bc2 b3 {0-} 0-1

[Event "45th FIDE Womens Olympiad 2024"]
[Site "Budapest"]
[Date "2024.09.16"]
[Round "6.191"]
[White "Mirza, Diana"]
[Black "Leung, Hoi Ting"]
[Result "1-0"]
[ECO "D12"]
[WhiteElo "1962"]
[BlackElo "1619"]
[PlyCount "61"]
[EventDate "2024.09.05"]
[EventType "team-tourn"]
[EventCountry "HUN"]
[WhiteTeam "Ireland"]
[BlackTeam "Hong Kong, China"]
[WhiteTeamCountry "IRL"]
[TimeControl "40/5400+30:1800+30"]

1. d4 Nf6 2. Nf3 d5 3. e3 Bf5 4. c4 e6 5. Bd3 Bxd3 6. Qxd3 c6 7. O-O Be7 8. Nc3 O-O 9. b3 Nbd7 10. Bb2 Rc8 11. cxd5 exd5 12. Ne5 Re8 13. f4 Ne4 14. Nxe4 dxe4 15. Qxe4 f6 16. Nxd7 Ba3 17. Qc2 Bxb2 18. Qxb2 Qxd7 19. Rf3 Re7 20. f5 Rce8 21. Kf2 Qd6 22. Rh1 b6 23. Qc3 Rc7 24. Qc4+ Kh8 25. g3 c5 26. Rc1 cxd4 27. Qxc7 dxe3+ 28. Kg1 Qd4 29. Qf4 Qb2 30. Qxe3 Rg8 31. Rf2 1-0

[Event "45th FIDE Womens Olympiad 2024"]
[Site "Budapest"]
[Date "2024.09.16"]
[Round "6.192"]
[White "Liu, Tian Yi"]
[Black "Gora, Antonina"]
[Result "1-0"]
[ECO "B51"]
[WhiteElo "1607"]
[BlackElo "1943"]
[PlyCount "83"]
[EventDate "2024.09.05"]
[EventType "team-tourn"]
[EventCountry "HUN"]
[WhiteTeam "Hong Kong, China"]
[BlackTeam "Ireland"]
[BlackTeamCountry "IRL"]
[TimeControl "40/5400+30:1800+30"]

1. e4 c5 2. Nf3 d6 3. Bb5+ Nd7 4. c3 a6 5. Ba4 b5 6. Bc2 Bb7 7. O-O Ngf6 8. Qe2 g6 9. d4 cxd4 10. cxd4 Bg7 11. Re1 O-O 12. Bd2 Rc8 13. Bd3 Qb6 14. a4 bxa4 15. Rxa4 Nb8 16. Na3 Nfd7 17. Nc4 Qa7 18. Na5 Nb6 19. Rb4 Nc6 20. Nxc6 Bxc6 21. Bxa6 Rb8 22. d5 Bd7 23. Be3 Qc7 24. Rc1 Qd8 25. Nd4 Na8 26. Nc6 Bxc6 27. Rxb8 Qxb8 28. dxc6 Nc7 29. Bb7 d5 30. Rd1 dxe4 31. Rd7 Be5 32. Bb6 Na8 33. Qa6 Bxh2+ 34. Kh1 Nxb6 35. Qxb6 Qf4 36. Qe3 Qh4 37. Qh3 Qxf2 38. Kxh2 e3 39. Qg3 Qf5 40. Qxe3 e5 41. Rd5 Re8 42. c7 1-0

[Event "45th FIDE Womens Olympiad 2024"]
[Site "Budapest"]
[Date "2024.09.16"]
[Round "6.193"]
[White "Nahed, Galab"]
[Black "Castillo Beitia, Ashley Alexandra"]
[Result "0-1"]
[ECO "D11"]
[WhiteElo "1693"]
[BlackElo "2071"]
[PlyCount "86"]
[EventDate "2024.09.05"]
[EventType "team-tourn"]
[EventCountry "HUN"]
[WhiteTeam "Sudan"]
[BlackTeam "Panama"]
[WhiteTeamCountry "SUD"]
[BlackTeamCountry "PAN"]
[TimeControl "40/5400+30:1800+30"]

1. Nf3 d5 2. d4 c6 3. g3 Nf6 4. Bg2 Bf5 5. c4 e6 6. O-O Be7 7. Nc3 Ne4 8. cxd5 exd5 9. Nd2 Nxd2 10. Qxd2 O-O 11. e4 dxe4 12. Nxe4 Na6 13. a3 Qd7 14. Qc3 Bh3 15. b4 Bxg2 16. Kxg2 Qd5 17. f3 Nc7 18. Bb2 Rad8 19. Rad1 f5 20. Nf2 Bf6 21. Qc5 Qxc5 22. bxc5 Rf7 23. Rd3 Rfd7 24. Rfd1 Kf7 25. a4 Ne6 26. Ba1 Bxd4 27. Bxd4 Rxd4 28. Rxd4 Rxd4 29. Rxd4 Nxd4 30. Nd3 Ke6 31. Kf2 Kd5 32. Ke3 Ne6 33. h4 Nxc5 34. Nf4+ Ke5 35. a5 Ne6 36. Ne2 g6 37. Nc3 f4+ 38. gxf4+ Nxf4 39. Kf2 Kd4 40. Ne4 b5 41. axb6 axb6 42. Kg3 Ne6 43. Nf6 b5 {0-} 0-1

[Event "45th FIDE Womens Olympiad 2024"]
[Site "Budapest"]
[Date "2024.09.16"]
[Round "6.194"]
[White "Chung Hurtado, Yaleika"]
[Black "Ibtihal, Osman"]
[Result "0-1"]
[ECO "E90"]
[WhiteElo "1832"]
[BlackElo "1626"]
[PlyCount "84"]
[EventDate "2024.09.05"]
[EventType "team-tourn"]
[EventCountry "HUN"]
[WhiteTeam "Panama"]
[BlackTeam "Sudan"]
[WhiteTeamCountry "PAN"]
[BlackTeamCountry "SUD"]
[TimeControl "40/5400+30:1800+30"]

1. d4 c5 2. d5 d6 3. c4 g6 4. Nc3 Bg7 5. Nf3 Nf6 6. e4 Ng4 7. h3 Ne5 8. Nxe5 dxe5 9. Be3 b6 10. Qd2 O-O 11. Bh6 Nd7 12. Be2 Nf6 13. h4 Bg4 14. f3 Bc8 15. g4 e6 16. Bxg7 Kxg7 17. h5 Rh8 18. O-O-O exd5 19. cxd5 Rb8 20. Rh2 Bd7 21. Rdh1 Qc7 22. d6 Qb7 23. Qg5 h6 24. Qxe5 Rbe8 25. Qg3 g5 26. Bc4 b5 27. Bd5 Qa6 28. Rd1 b4 29. Nb1 Nxd5 30. Rxd5 Re6 31. a3 Rc8 32. Rhd2 Qf1+ 33. Rd1 Qc4+ 34. Kd2 Qb3 35. Ke1 Rxe4+ 36. Kf1 Bb5+ 37. Kg1 Re2 38. d7 Rd8 39. R5d2 Qe3+ 40. Kh1 Rxd7 41. Rxd7 Bxd7 42. Rxd7 Qc1+ {0-} 0-1

[Event "45th FIDE Womens Olympiad 2024"]
[Site "Budapest"]
[Date "2024.09.16"]
[Round "6.195"]
[White "Sabreen, Oraby"]
[Black "Vasquez Jaen, Lourdes Lorena"]
[Result "1/2-1/2"]
[ECO "A20"]
[WhiteElo "1812"]
[BlackElo "1821"]
[PlyCount "87"]
[EventDate "2024.09.05"]
[EventType "team-tourn"]
[EventCountry "HUN"]
[WhiteTeam "Sudan"]
[BlackTeam "Panama"]
[WhiteTeamCountry "SUD"]
[BlackTeamCountry "PAN"]
[TimeControl "40/5400+30:1800+30"]

1. c4 e5 2. g3 Nc6 3. Bg2 Bc5 4. e3 a6 5. Nc3 d6 6. Nge2 Ba7 7. O-O h5 8. d4 h4 9. b4 hxg3 10. fxg3 Bh3 11. b5 Nce7 12. bxa6 Qd7 13. Rf2 Bxg2 14. Kxg2 Nf6 15. axb7 Rb8 16. Qf1 Ng4 17. Rxf7 Nxh2 18. Qf2 Qh3+ 19. Kg1 Ng4 20. Rxe7+ Kxe7 21. Nd5+ Kd8 22. Qg2 Qxg2+ 23. Kxg2 Rxb7 24. Kf3 Nh2+ 25. Ke4 c6 26. Ndc3 exd4 27. exd4 Re7+ 28. Kd3 Nf3 29. Bf4 Rhe8 30. Rf1 Nh2 31. Rh1 Ng4 32. Rf1 Nh2 33. Rh1 Ng4 34. Rf1 Rf8 35. Rb1 Nf2+ 36. Kc2 Ne4 37. Nxe4 Rxe4 38. Kd3 Rfe8 39. Rb7 Rxe2 40. Rxa7 g6 41. a4 Ra2 42. Ra8+ Kd7 43. Rxe8 Kxe8 44. Bxd6 1/2-1/2

[Event "45th FIDE Womens Olympiad 2024"]
[Site "Budapest"]
[Date "2024.09.16"]
[Round "6.196"]
[White "Carrillo Marval, Maria Angelica"]
[Black "Rawan, Mansor"]
[Result "1-0"]
[ECO "B19"]
[WhiteElo "1795"]
[BlackElo "1717"]
[PlyCount "115"]
[EventDate "2024.09.05"]
[EventType "team-tourn"]
[EventCountry "HUN"]
[WhiteTeam "Panama"]
[BlackTeam "Sudan"]
[WhiteTeamCountry "PAN"]
[BlackTeamCountry "SUD"]
[TimeControl "40/5400+30:1800+30"]

1. e4 c6 2. d4 d5 3. Nc3 dxe4 4. Nxe4 Bf5 5. Ng3 Bg6 6. Nf3 Nd7 7. h4 h6 8. h5 Bh7 9. Bd3 Bxd3 10. Qxd3 Ngf6 11. Bd2 e6 12. O-O-O c5 13. Rhe1 Be7 14. dxc5 Bxc5 15. Be3 Bxe3+ 16. Rxe3 O-O 17. Qe2 Qa5 18. Kb1 Nd5 19. Ra3 Qc7 20. Nd4 a6 21. Nxe6 fxe6 22. Qxe6+ Kh8 23. Qxd5 Nb6 24. Qa5 Rad8 25. Rxd8 Qxd8 26. Rd3 Qe8 27. b3 Nd7 28. Qd2 Nf6 29. Re3 Qc6 30. f3 Qc7 31. Ne4 Nxh5 32. Qd6 Qf7 33. Nc5 Nf4 34. Re7 Qh5 35. Rxb7 Ng6 36. Rb8 Rxb8 37. Qxb8+ Kh7 38. Nd3 Qh1+ 39. Kb2 Qxg2 40. Qb7 h5 41. Qe4 h4 42. Nf4 Qg3 43. Nxg6 Qxg6 44. Qxh4+ Kg8 45. Qd8+ Kh7 46. Qd3 Qxd3 47. cxd3 Kg6 48. Kc3 Kf5 49. Kd2 Kf4 50. Ke2 a5 51. a3 g6 52. b4 axb4 53. axb4 Ke5 54. Ke3 g5 55. b5 Kd5 56. d4 Kd6 57. Ke4 Ke6 58. b6 1-0

[Event "45th FIDE Womens Olympiad 2024"]
[Site "Budapest"]
[Date "2024.09.16"]
[Round "6.197"]
[White "Bantiwalu, Aster Melake"]
[Black "Granados Ortiz, Maria Jose"]
[Result "1/2-1/2"]
[ECO "B02"]
[WhiteElo "1704"]
[BlackElo "1935"]
[PlyCount "141"]
[EventDate "2024.09.05"]
[EventType "team-tourn"]
[EventCountry "HUN"]
[WhiteTeam "Ethiopia"]
[BlackTeam "Nicaragua"]
[WhiteTeamCountry "ETH"]
[BlackTeamCountry "NCA"]
[TimeControl "40/5400+30:1800+30"]

1. e4 Nf6 2. Nc3 d5 3. e5 Ne4 4. Nxe4 dxe4 5. d4 exd3 6. Bxd3 Nc6 7. f4 e6 8. Nf3 Bc5 9. Qe2 Bd7 10. Be3 Qe7 11. O-O Nb4 12. Bxc5 Qxc5+ 13. Kh1 Nd5 14. Ng5 h6 15. Ne4 Qb6 16. c3 O-O-O 17. a3 Bc6 18. c4 Ne3 19. Rf3 Nf5 20. c5 Qb3 21. Rh3 Qd5 22. b4 Nd4 23. Qf2 Qd7 24. Nc3 Nb5 25. Ne2 a6 26. a4 Nd4 27. b5 Nxb5 28. axb5 Bxb5 29. Bxb5 Qxb5 30. Nc3 Qc4 31. Rb1 Rd4 32. Qb2 Qxc5 33. Qxb7+ Kd7 34. Qxa6 Rxf4 35. Rd3+ Ke7 36. Rbd1 g5 37. Rd7+ Kf8 38. Qc8+ Kg7 39. Qxc7 Qxc7 40. Rxc7 Rd8 41. Ra1 Ra8 42. Re1 Ra5 43. h3 Rf5 44. Kh2 Raxe5 45. Rxe5 Rxe5 46. Kg3 Kg6 47. Kf3 f5 48. Ne2 g4+ 49. hxg4 fxg4+ 50. Kf2 h5 51. Rc6 h4 52. Rc8 Rf5+ 53. Ke1 h3 54. Rg8+ Kf7 55. Rxg4 hxg2 56. Rxg2 Kf6 57. Rg3 Rg5 58. Rf3+ Rf5 59. Re3 Re5 60. Rb3 Ke7 61. Kd2 Rd5+ 62. Ke3 Re5+ 63. Kf3 Rf5+ 64. Kg4 Kf6 65. Rb8 Rg5+ 66. Kh4 Re5 67. Nf4 Re4 68. Kg3 Ke5 69. Re8 Rxf4 70. Rxe6+ Kxe6 71. Kxf4 1/2-1/2

[Event "45th FIDE Womens Olympiad 2024"]
[Site "Budapest"]
[Date "2024.09.16"]
[Round "6.198"]
[White "Cabezas Calero, Abigail Carolina"]
[Black "Abera, Mekdes Demssie"]
[Result "1/2-1/2"]
[ECO "B22"]
[WhiteElo "1824"]
[BlackElo "1593"]
[PlyCount "114"]
[EventDate "2024.09.05"]
[EventType "team-tourn"]
[EventCountry "HUN"]
[WhiteTeam "Nicaragua"]
[BlackTeam "Ethiopia"]
[WhiteTeamCountry "NCA"]
[BlackTeamCountry "ETH"]
[TimeControl "40/5400+30:1800+30"]

1. e4 c5 2. c3 e6 3. d4 d5 4. exd5 Qxd5 5. Nf3 Nf6 6. Be2 cxd4 7. cxd4 Nc6 8. Nc3 Qd8 9. Bb5 a6 10. Be2 Bb4 11. O-O O-O 12. h3 Nd5 13. Bd2 b5 14. a4 Bxc3 15. bxc3 b4 16. c4 Nf6 17. Bg5 a5 18. d5 exd5 19. Bxf6 Qxf6 20. cxd5 Ne5 21. Nxe5 Qxe5 22. Bf3 Rd8 23. Re1 Qf6 24. Rc1 Ra7 25. Rc6 Qg5 26. Qd4 Re7 27. Rxe7 Qxe7 28. d6 Qe1+ 29. Kh2 Bb7 30. Qb6 Qe5+ 31. g3 Bxc6 32. Qxd8+ Qe8 33. Qc7 Bxa4 34. Qxa5 b3 35. Qb4 Qb5 36. Qd2 g6 37. Bd1 Qb6 38. Qb2 Qxd6 39. Bxb3 Bxb3 40. Qxb3 Qc6 41. Qb8+ Kg7 42. Qe5+ Qf6 43. Qe3 h5 44. Kg2 Qc6+ 45. Kg1 Qd5 46. h4 Qd1+ 47. Kh2 Qd6 48. Qg5 Qf6 49. Qe3 Qd6 50. Kg2 Qc6+ 51. Qf3 Qxf3+ 52. Kxf3 f6 53. Kf4 Kf7 54. f3 Kg7 55. Ke4 Kf7 56. g4 hxg4 57. fxg4 Kg7 1/2-1/2

[Event "45th FIDE Womens Olympiad 2024"]
[Site "Budapest"]
[Date "2024.09.16"]
[Round "6.199"]
[White "Teshome, Wubrist Bekele"]
[Black "Munoz Cortez, Anahi Alexandra"]
[Result "0-1"]
[ECO "C02"]
[WhiteElo "1614"]
[BlackElo "1868"]
[PlyCount "101"]
[EventDate "2024.09.05"]
[EventType "team-tourn"]
[EventCountry "HUN"]
[WhiteTeam "Ethiopia"]
[BlackTeam "Nicaragua"]
[WhiteTeamCountry "ETH"]
[BlackTeamCountry "NCA"]
[TimeControl "40/5400+30:1800+30"]

1. e4 e6 2. Nf3 d5 3. e5 c5 4. d4 Nc6 5. Be3 Qb6 6. dxc5 Bxc5 7. Bxc5 Qxc5 8. a3 Nge7 9. Bd3 Bd7 10. O-O Ng6 11. Re1 Qb6 12. b4 a5 13. bxa5 Rxa5 14. Nc3 Qb2 15. Nb5 Rxb5 16. Bxb5 Qxb5 17. Re3 Qc5 18. Rb1 Na5 19. Nd4 Nc4 20. Reb3 b6 21. Nf3 O-O 22. Nd2 Ngxe5 23. Nxc4 Nxc4 24. Rc3 Rc8 25. Rb4 Qe7 26. Qd4 Qf6 27. Qxf6 gxf6 28. h4 Ra8 29. Rg3+ Kh8 30. h5 h6 31. Rbb3 Ba4 32. Rbc3 Rg8 33. Rxg8+ Kxg8 34. Kh2 f5 35. Kh3 Kg7 36. f4 Kf6 37. g3 Ke7 38. g4 fxg4+ 39. Kxg4 Bxc2 40. Kh4 Be4 41. a4 Kd6 42. Rg3 Kc5 43. Rg7 Nd6 44. Rg1 d4 45. Kg3 Nc4 46. Kf2 Bc2 47. Rg7 d3 48. Rxf7 d2 49. Rd7 d1=Q 50. Rxd1 Bxd1 51. Kg3 {0-} 0-1

[Event "45th FIDE Womens Olympiad 2024"]
[Site "Budapest"]
[Date "2024.09.16"]
[Round "6.200"]
[White "Alvarez Gutierrez, Patricia"]
[Black "Teweldemedhn, Mekdes Teklay"]
[Result "1-0"]
[ECO "A43"]
[WhiteElo "1826"]
[BlackElo "1648"]
[PlyCount "113"]
[EventDate "2024.09.05"]
[EventType "team-tourn"]
[EventCountry "HUN"]
[WhiteTeam "Nicaragua"]
[BlackTeam "Ethiopia"]
[WhiteTeamCountry "NCA"]
[BlackTeamCountry "ETH"]
[TimeControl "40/5400+30:1800+30"]

1. d4 c5 2. d5 g6 3. c4 d6 4. Nc3 Bg7 5. e4 Qb6 6. Bd3 Qb4 7. Qc2 Nf6 8. h3 O-O 9. Nge2 e6 10. O-O e5 11. Nb5 Qa5 12. Nxd6 a6 13. Nxc8 Rxc8 14. Bd2 Qb6 15. Rab1 Nbd7 16. Bc3 Qd6 17. b4 Qc7 18. b5 a5 19. Qb2 b6 20. f4 Re8 21. f5 Qd6 22. Rf3 Re7 23. Rbf1 Rf8 24. Bd2 h6 25. fxg6 fxg6 26. Qc1 Kh7 27. g4 g5 28. Ng3 Ref7 29. Nf5 Qb8 30. Qe1 Qd8 31. Qg3 Ng8 32. Bc3 Ne7 33. R3f2 Ng6 34. Nxg7 Rxf2 35. Rxf2 Rxf2 36. Ne6 Qf6 37. Qxf2 Qxf2+ 38. Kxf2 Nf4 39. Nxf4 gxf4 40. h4 Kg6 41. Kf3 Kf6 42. Bd2 Kg6 43. Bxf4 exf4 44. Kxf4 Kf6 45. g5+ hxg5+ 46. hxg5+ Kf7 47. e5 Ke7 48. g6 Kf8 49. Kf5 Kg7 50. e6 Nf6 51. d6 Ne8 52. Ke5 Kf8 53. d7 Ke7 54. dxe8=Q+ Kxe8 55. Kf6 Kf8 56. g7+ Kg8 57. e7 1-0